fUST/lending_fUST_20240903
["ID","MTS","AMOUNT","RATE_DAILY","PERIOD"]
[337001513,1725299506163,-619.14,0.00052054,120]
[337001514,1725299506173,-500.0,0.00052054,120]
[337001515,1725299506184,-500.0,0.00052054,120]
[337001516,1725299506194,-1248.91,0.00052054,120]
[337001517,1725299506205,-762.67,0.00052054,120]
[337001518,1725299506215,-500.0,0.00052054,120]
[337001519,1725299506224,-500.0,0.00052054,120]
[337001520,1725299506235,-594.72457954,0.00052054,120]
[337001521,1725299506245,-500.0,0.00052054,120]
[337001522,1725299506255,-505.46,0.00052054,120]
[337001523,1725299506265,-500.0,0.00052054,120]
[337001524,1725299506275,-729.65,0.00052054,120]
[337001525,1725299506285,-500.0,0.00052054,120]
[337001526,1725299506296,-337.49909979,0.00052054,120]
[337001527,1725299506306,-571.48,0.00052054,120]
[337001528,1725299506315,-835.83,0.00052054,120]
[337001529,1725299506326,-500.0,0.00052054,120]
[337001530,1725299506336,-500.0,0.00052054,120]
[337001531,1725299506350,-587.13,0.00052054,30]
[337001532,1725299506359,-587.19401539,0.00052054,120]
[337001533,1725299506370,-500.0,0.00052054,120]
[337001534,1725299506379,-779.61,0.00052054,120]
[337001535,1725299506388,-1042.33,0.00052054,120]
[337001536,1725299506399,-500.0,0.00052054,120]
[337001537,1725299506408,-500.0,0.00052054,120]
[337001538,1725299506417,-562.87,0.00052054,120]
[337001539,1725299506427,-620.6,0.00052054,120]
[337001540,1725299506437,-500.0,0.00052054,120]
[337001541,1725299506446,-391.81930658,0.00052054,120]
[337001542,1725299506456,-1378.84,0.00052054,120]
[337001543,1725299506466,-1685.12,0.00052054,120]
[337001544,1725299506476,-807.99,0.00052054,120]
[337001545,1725299506486,-2400.57,0.00052054,120]
[337001546,1725299506496,-301.75281174,0.00052054,120]
[337001547,1725299506506,-375.72942343,0.00052054,120]
[337001548,1725299506515,-2683.59,0.00052054,120]
[337001549,1725299506525,-9812.96,0.00052054,120]
[337001550,1725299506535,-559.89,0.00052054,21]
[337001551,1725299506544,-1849.02,0.00052054,2]
[337001552,1725299506554,-1101.48,0.00052054,120]
[337001553,1725299506564,-1032.68,0.00052054,120]
[337001554,1725299506573,-500.0,0.00052054,120]
[337001555,1725299506583,-500.0,0.00052054,120]
[337001556,1725299506593,-500.0,0.00052054,120]
[337001557,1725299506607,-500.0,0.00052054,120]
[337001558,1725299506616,-500.0,0.00052054,14]
[337001559,1725299506626,-581.24,0.00052054,120]
[337001560,1725299506635,-1006.75,0.00052054,120]
[337001561,1725299506645,-564.09,0.00052054,120]
[337001562,1725299506655,-824.68,0.00052054,120]
[337001563,1725299506665,-592.45,0.00052054,120]
[337001564,1725299506674,-2165.33,0.00052054,120]
[337001565,1725299506684,-500.0,0.00052054,7]
[337001566,1725299506694,-801.11,0.00052054,120]
[337001567,1725299506839,-6010.24,0.00052054,120]
[337001568,1725299506852,-2597.09,0.00052054,120]
[337001569,1725299506862,-1197.24,0.00052054,120]
[337001570,1725299506872,-425.55206022,0.00052054,120]
[337001571,1725299506881,-500.0,0.00052054,120]
[337001572,1725299506891,-500.0,0.00052054,120]
[337001573,1725299506900,-725.84,0.00052054,120]
[337001574,1725299506910,-509.19,0.00052054,120]
[337001575,1725299506920,-500.0,0.00052054,120]
[337001576,1725299506929,-500.0,0.00052054,120]
[337001577,1725299506939,-768.36,0.00052054,120]
[337001578,1725299506947,-500.0,0.00052054,120]
[337001579,1725299506957,-1224.14,0.00052054,120]
[337001580,1725299506966,-601.31,0.00052054,120]
[337001581,1725299506975,-555.15,0.00052054,120]
[337001582,1725299506985,-500.0,0.00052054,120]
[337001583,1725299506995,-541.45,0.00052054,120]
[337001584,1725299507005,-520.45,0.00052054,120]
[337001585,1725299507014,-823.62,0.00052054,120]
[337001586,1725299507024,-400.01,0.00052054,120]
[337001587,1725299507034,-500.0,0.00052054,120]
[337001588,1725299507046,-500.0,0.00052054,120]
[337001589,1725299507057,-500.0,0.00052054,120]
[337001590,1725299507069,-4513.12,0.00052054,120]
[337001591,1725299507079,-824.48,0.00052054,120]
[337001592,1725299507088,-500.0,0.00052054,120]
[337001593,1725299507100,-500.0,0.00052054,120]
[337001594,1725299507109,-513.66,0.00052054,120]
[337001595,1725299507119,-500.0,0.00052054,120]
[337001596,1725299507129,-270.52,0.00052054,120]
[337001597,1725299507139,-634.52,0.00052054,120]
[337001598,1725299507148,-500.0,0.00052054,120]
[337001599,1725299507157,-2265.21,0.00052054,120]
[337001600,1725299507166,-611.87,0.00052054,120]
[337001601,1725299507175,-500.68,0.00052054,120]
[337001602,1725299507187,-725.61,0.00052054,120]
[337001603,1725299507197,-1603.88,0.00052054,120]
[337001604,1725299507206,-500.0,0.00052054,120]
[337001605,1725299507216,-2208.45,0.00052054,120]
[337001606,1725299507225,-500.0,0.00052054,120]
[337001607,1725299507235,-1295.36,0.00052054,120]
[337001608,1725299507244,-500.0,0.00052054,120]
[337001609,1725299507254,-852.54,0.00052054,120]
[337001610,1725299507264,-2684.25,0.00052054,120]
[337001611,1725299507273,-500.0,0.00052054,120]
[337001612,1725299507282,-500.0,0.00052054,120]
[337001613,1725299507291,-760.47,0.00052054,120]
[337001614,1725299507300,-243.08199574,0.00052054,120]
[337001615,1725299507310,-2593.6,0.00052054,120]
[337001616,1725299507320,-1684.55,0.00052054,120]
[337001617,1725299507330,-1404.31,0.00052054,120]
[337001618,1725299507339,-218.787,0.00052105,120]
[337001619,1725299507353,-165.4,0.00052602,120]
[337001620,1725299507362,-588.33,0.00052602,120]
[337001621,1725299507372,-500.0,0.00052602,120]
[337001622,1725299507382,-1913.8,0.00052602,120]
[337001623,1725299507391,-500.0,0.00052602,120]
[337001624,1725299507401,-249.26597034,0.00052602,120]
[337001625,1725299507411,-520.83,0.00052602,120]
[337001626,1725299507419,-500.0,0.00052602,120]
[337001627,1725299507429,-420.41599597,0.00052602,120]
[337001628,1725299507438,-529.17,0.00052602,120]
[337001629,1725299507447,-796.73,0.00052602,120]
[337001630,1725299507456,-529.6,0.00052602,120]
[337001631,1725299507466,-500.0,0.00052602,120]
[337001632,1725299507475,-500.0,0.00052602,120]
[337001633,1725299507485,-500.0,0.00052602,120]
[337001634,1725299507495,-500.0,0.00052602,120]
[337001635,1725299507504,-500.0,0.00052602,120]
[337001636,1725299507514,-500.0,0.00052602,120]
[337001637,1725299507524,-606.46,0.00052602,120]
[337001638,1725299507533,-500.0,0.00052602,120]
[337001639,1725299507543,-500.0,0.00052602,120]
[337001640,1725299507552,-509.34,0.00052602,120]
[337001641,1725299507563,-865.46,0.00052602,120]
[337001642,1725299507573,-1000.49,0.00052602,120]
[337001643,1725299507582,-1160.3,0.00052602,120]
[337001644,1725299507591,-500.0,0.00052602,120]
[337001645,1725299507603,-619.14,0.00052602,120]
[337001646,1725299507613,-500.0,0.00052602,120]
[337001647,1725299507623,-500.0,0.00052602,120]
[337001648,1725299507632,-1248.91,0.00052602,120]
[337001649,1725299507642,-762.67,0.00052602,120]
[337001650,1725299507651,-500.0,0.00052602,120]
[337001651,1725299507661,-500.0,0.00052602,120]
[337001652,1725299507670,-500.0,0.00052602,120]
[337001653,1725299507680,-505.46,0.00052602,120]
[337001654,1725299507690,-500.0,0.00052602,120]
[337001655,1725299507699,-729.65,0.00052602,120]
[337001656,1725299507710,-500.0,0.00052602,120]
[337001657,1725299507721,-571.48,0.00052602,120]
[337001658,1725299507731,-835.83,0.00052602,120]
[337001659,1725299507740,-500.0,0.00052602,120]
[337001660,1725299507750,-500.0,0.00052602,120]
[337001661,1725299507760,-587.13,0.00052602,30]
[337001662,1725299507770,-500.0,0.00052602,120]
[337001663,1725299507779,-779.61,0.00052602,120]
[337001664,1725299507790,-1042.33,0.00052602,120]
[337001665,1725299507800,-500.0,0.00052602,120]
[337001666,1725299507810,-500.0,0.00052602,120]
[337001667,1725299507819,-562.87,0.00052602,120]
[337001668,1725299507829,-620.6,0.00052602,120]
[337001669,1725299507839,-500.0,0.00052602,120]
[337001670,1725299507850,-1378.84,0.00052602,120]
[337001671,1725299507860,-1685.12,0.00052602,120]
[337001672,1725299507870,-807.99,0.00052602,120]
[337001673,1725299507879,-2400.57,0.00052602,120]
[337001674,1725299507889,-2683.59,0.00052602,120]
[337001675,1725299507899,-9812.96,0.00052602,120]
[337001676,1725299507909,-559.89,0.00052602,21]
[337001677,1725299507919,-1849.02,0.00052602,2]
[337001678,1725299507929,-1101.48,0.00052602,120]
[337001679,1725299507939,-1032.68,0.00052602,120]
[337001680,1725299507950,-451.99851838,0.00052602,120]
[337001681,1725299507961,-500.0,0.00052602,120]
[337001682,1725299507970,-500.0,0.00052602,120]
[337001683,1725299507979,-500.0,0.00052602,120]
[337001684,1725299507989,-409.56,0.00052602,14]
[337001685,1725299507998,-581.24,0.00052602,120]
[337001686,1725299508008,-1006.75,0.00052602,120]
[337001687,1725299508018,-564.09,0.00052602,120]
[337001688,1725299508027,-824.68,0.00052602,120]
[337001689,1725299508036,-592.45,0.00052602,120]
[337001690,1725299508046,-2165.33,0.00052602,120]
[337001691,1725299508057,-500.0,0.00052602,7]
[337001692,1725299508067,-801.11,0.00052602,120]
[337001693,1725299508077,-6010.24,0.00052602,120]
[337001694,1725299508086,-2597.09,0.00052602,120]
[337001695,1725299508099,-1197.24,0.00052602,120]
[337001696,1725299508108,-500.0,0.00052602,120]
[337001697,1725299508119,-500.0,0.00052602,120]
[337001698,1725299508130,-725.84,0.00052602,120]
[337001699,1725299508143,-509.19,0.00052602,120]
[337001700,1725299508154,-500.0,0.00052602,120]
[337001701,1725299508164,-768.36,0.00052602,120]
[337001702,1725299508174,-500.0,0.00052602,120]
[337001703,1725299508184,-500.0,0.00052602,120]
[337001704,1725299508194,-1224.14,0.00052602,120]
[337001705,1725299508204,-601.31,0.00052602,120]
[337001706,1725299508213,-555.15,0.00052602,120]
[337001707,1725299508224,-500.0,0.00052602,120]
[337001708,1725299508233,-541.45,0.00052602,120]
[337001709,1725299508242,-823.62,0.00052602,120]
[337001710,1725299508252,-316.98555019,0.00052602,120]
[337001711,1725299508261,-442.97,0.00052602,120]
[337001712,1725299508271,-500.0,0.00052602,120]
[337001713,1725299508281,-4513.12,0.00052602,120]
[337001714,1725299508291,-824.48,0.00052602,120]
[337001715,1725299508300,-500.0,0.00052602,120]
[337001716,1725299508309,-500.0,0.00052602,120]
[337001717,1725299508319,-513.66,0.00052602,120]
[337001718,1725299508328,-648.91,0.00052602,120]
[337001719,1725299508338,-634.52,0.00052602,120]
[337001720,1725299508350,-500.0,0.00052602,120]
[337001721,1725299508360,-2265.21,0.00052602,120]
[337001722,1725299508369,-611.87,0.00052602,120]
[337001723,1725299508378,-500.68,0.00052602,120]
[337001724,1725299508387,-725.61,0.00052602,120]
[337001725,1725299508396,-1603.88,0.00052602,120]
[337001726,1725299508406,-500.0,0.00052602,120]
[337001727,1725299508416,-2208.45,0.00052602,120]
[337001728,1725299508426,-385.41,0.00052602,120]
[337001729,1725299508436,-1295.36,0.00052602,120]
[337001730,1725299508447,-500.0,0.00052602,120]
[337001731,1725299508457,-852.54,0.00052602,120]
[337001732,1725299508468,-2684.25,0.00052602,120]
[337001733,1725299508477,-500.0,0.00052602,120]
[337001734,1725299508487,-500.0,0.00052602,120]
[337001735,1725299508497,-760.47,0.00052602,120]
[337001736,1725299508507,-2593.6,0.00052602,120]
[337001737,1725299508518,-1684.55,0.00052602,120]
[337001738,1725299508528,-1404.31,0.00052602,120]
[337001739,1725299508538,-150.0,0.00052784,120]
[337001740,1725299508548,-523.0,0.00052784,120]
[337001741,1725299508558,-600.0,0.000528,2]
[337001742,1725299508568,-150.0,0.00053,120]
[337001743,1725299508578,-588.33,0.0005315,120]
[337001744,1725299508588,-500.0,0.0005315,120]
[337001745,1725299508602,-1913.8,0.0005315,120]
[337001746,1725299508611,-500.0,0.0005315,120]
[337001747,1725299508621,-520.83,0.0005315,120]
[337001748,1725299508632,-500.0,0.0005315,120]
[337001749,1725299508644,-796.73,0.0005315,120]
[337001750,1725299508653,-529.6,0.0005315,120]
[337001751,1725299508663,-500.0,0.0005315,120]
[337001752,1725299508672,-352.75,0.0005315,120]
[337001753,1725299508682,-500.0,0.0005315,120]
[337001754,1725299508692,-500.0,0.0005315,120]
[337001755,1725299508701,-500.0,0.0005315,120]
[337001756,1725299508715,-500.0,0.0005315,120]
[337001757,1725299508725,-606.46,0.0005315,120]
[337001758,1725299508735,-500.0,0.0005315,120]
[337001759,1725299508745,-500.0,0.0005315,120]
[337001760,1725299508755,-509.34,0.0005315,120]
[337001761,1725299508765,-865.46,0.0005315,120]
[337001762,1725299508775,-1000.49,0.0005315,120]
[337001763,1725299508785,-1160.3,0.0005315,120]
[337001764,1725299508795,-154.58343216,0.0005315,120]
[337001765,1725299508807,-619.14,0.0005315,120]
[337001766,1725299508817,-500.0,0.0005315,120]
[337001767,1725299508827,-500.0,0.0005315,120]
[337001768,1725299508836,-1248.91,0.0005315,120]
[337001769,1725299508846,-762.67,0.0005315,120]
[337001770,1725299508857,-500.0,0.0005315,120]
[337001771,1725299508866,-500.0,0.0005315,120]
[337001772,1725299508876,-500.0,0.0005315,120]
[337001773,1725299508885,-505.46,0.0005315,120]
[337001774,1725299508895,-500.0,0.0005315,120]
[337001775,1725299508905,-729.65,0.0005315,120]
[337001776,1725299508916,-500.0,0.0005315,120]
[337001777,1725299508926,-571.48,0.0005315,120]
[337001778,1725299508936,-835.83,0.0005315,120]
[337001779,1725299508946,-500.0,0.0005315,120]
[337001780,1725299508956,-587.13,0.0005315,30]
[337001781,1725299508966,-308.43,0.0005315,120]
[337001782,1725299508975,-779.61,0.0005315,120]
[337001783,1725299508986,-1042.33,0.0005315,120]
[337001784,1725299508996,-500.0,0.0005315,120]
[337001785,1725299509006,-500.0,0.0005315,120]
[337001786,1725299509016,-562.87,0.0005315,120]
[337001787,1725299509027,-500.0,0.0005315,120]
[337001788,1725299509037,-620.6,0.0005315,120]
[337001789,1725299509046,-1378.84,0.0005315,120]
[337001790,1725299509057,-1685.12,0.0005315,120]
[337001791,1725299509068,-807.99,0.0005315,120]
[337001792,1725299509077,-2400.57,0.0005315,120]
[337001793,1725299509087,-2683.59,0.0005315,120]
[337001794,1725299509096,-9812.96,0.0005315,120]
[337001795,1725299509117,-559.89,0.0005315,21]
[337001796,1725299509128,-1849.02,0.0005315,2]
[337001797,1725299509138,-1101.48,0.0005315,120]
[337001798,1725299509148,-1032.68,0.0005315,120]
[337001799,1725299509158,-500.0,0.0005315,120]
[337001800,1725299509168,-330.69,0.0005315,120]
[337001801,1725299509178,-500.0,0.0005315,120]
[337001802,1725299509187,-581.24,0.0005315,120]
[337001803,1725299509197,-1006.75,0.0005315,120]
[337001804,1725299509206,-564.09,0.0005315,120]
[337001805,1725299509216,-824.68,0.0005315,120]
[337001806,1725299509225,-592.45,0.0005315,120]
[337001807,1725299509234,-2165.33,0.0005315,120]
[337001808,1725299509245,-500.0,0.0005315,7]
[337001809,1725299509254,-801.11,0.0005315,120]
[337001810,1725299509265,-6010.24,0.0005315,120]
[337001811,1725299509274,-2597.09,0.0005315,120]
[337001812,1725299509284,-1197.24,0.0005315,120]
[337001813,1725299509295,-500.0,0.0005315,120]
[337001814,1725299509305,-725.84,0.0005315,120]
[337001815,1725299509315,-509.19,0.0005315,120]
[337001816,1725299509325,-204.99,0.0005315,120]
[337001817,1725299509335,-500.0,0.0005315,120]
[337001818,1725299509344,-768.36,0.0005315,120]
[337001819,1725299509356,-500.0,0.0005315,120]
[337001820,1725299509366,-1224.14,0.0005315,120]
[337001821,1725299509376,-601.31,0.0005315,120]
[337001822,1725299509386,-555.15,0.0005315,120]
[337001823,1725299509396,-500.0,0.0005315,120]
[337001824,1725299509406,-541.45,0.0005315,120]
[337001825,1725299509416,-823.62,0.0005315,120]
[337001826,1725299509427,-500.0,0.0005315,120]
[337001827,1725299509437,-4513.12,0.0005315,120]
[337001828,1725299509446,-824.48,0.0005315,120]
[337001829,1725299509456,-500.0,0.0005315,120]
[337001830,1725299509466,-500.0,0.0005315,120]
[337001831,1725299509475,-513.66,0.0005315,120]
[337001832,1725299509485,-634.52,0.0005315,120]
[337001833,1725299509494,-500.0,0.0005315,120]
[337001834,1725299509504,-2265.21,0.0005315,120]
[337001835,1725299509515,-611.87,0.0005315,120]
[337001836,1725299509526,-725.61,0.0005315,120]
[337001837,1725299509536,-500.68,0.0005315,120]
[337001838,1725299509546,-1603.88,0.0005315,120]
[337001839,1725299509556,-500.0,0.0005315,120]
[337001840,1725299509567,-2208.45,0.0005315,120]
[337001841,1725299509577,-1295.36,0.0005315,120]
[337001842,1725299509587,-500.0,0.0005315,120]
[337001843,1725299509599,-852.54,0.0005315,120]
[337001844,1725299509610,-2684.25,0.0005315,120]
[337001845,1725299509620,-500.0,0.0005315,120]
[337001846,1725299509630,-500.0,0.0005315,120]
[337001847,1725299509639,-760.47,0.0005315,120]
[337001848,1725299509648,-2593.6,0.0005315,120]
[337001849,1725299509658,-1684.55,0.0005315,120]
[337001850,1725299509669,-1404.31,0.0005315,120]
[337001851,1725299509679,-600.0,0.0005335,2]
[337001852,1725299509688,-150.0,0.000535,120]
[337001853,1725299509697,-588.33,0.00053698,120]
[337001854,1725299509707,-500.0,0.00053698,120]
[337001855,1725299509722,-1913.8,0.00053698,120]
[337001856,1725299509732,-500.0,0.00053698,120]
[337001857,1725299509742,-520.83,0.00053698,120]
[337001858,1725299509753,-269.65867128,0.00053698,120]
[337001859,1725299509762,-796.73,0.00053698,120]
[337001860,1725299509772,-529.6,0.00053698,120]
[337001861,1725299509781,-500.0,0.00053698,120]
[337001862,1725299509793,-207.66638738,0.00053698,120]
[337001863,1725299509804,-500.0,0.00053698,120]
[337001864,1725299509814,-500.0,0.00053698,120]
[337001865,1725299509825,-500.0,0.00053698,120]
[337001866,1725299509835,-606.46,0.00053698,120]
[337001867,1725299509846,-500.0,0.00053698,120]
[337001868,1725299509856,-500.0,0.00053698,120]
[337001869,1725299509866,-509.34,0.00053698,120]
[337001870,1725299509876,-865.46,0.00053698,120]
[337001871,1725299509885,-1000.49,0.00053698,120]
[337001872,1725299509895,-1160.3,0.00053698,120]
[337001873,1725299509905,-619.14,0.00053698,120]
[337001874,1725299509915,-500.0,0.00053698,120]
[337001875,1725299509925,-500.0,0.00053698,120]
[337001876,1725299509934,-1248.91,0.00053698,120]
[337001877,1725299509944,-762.67,0.00053698,120]
[337001878,1725299509954,-610.34,0.00053698,120]
[337001879,1725299509964,-500.0,0.00053698,120]
[337001880,1725299509974,-500.0,0.00053698,120]
[337001881,1725299509985,-505.46,0.00053698,120]
[337001882,1725299509995,-500.0,0.00053698,120]
[337001883,1725299510005,-729.65,0.00053698,120]
[337001884,1725299510015,-500.0,0.00053698,120]
[337001885,1725299510025,-571.48,0.00053698,120]
[337001886,1725299510035,-835.83,0.00053698,120]
[337001887,1725299510045,-540.76,0.00053698,120]
[337001888,1725299510055,-587.13,0.00053698,30]
[337001889,1725299510064,-779.61,0.00053698,120]
[337001890,1725299510075,-1042.33,0.00053698,120]
[337001891,1725299510085,-500.0,0.00053698,120]
[337001892,1725299510095,-500.0,0.00053698,120]
[337001893,1725299510105,-562.87,0.00053698,120]
[337001894,1725299510115,-620.6,0.00053698,120]
[337001895,1725299510125,-459.23492778,0.00053698,120]
[337001896,1725299510135,-1378.84,0.00053698,120]
[337001897,1725299510144,-1685.12,0.00053698,120]
[337001898,1725299510155,-807.99,0.00053698,120]
[337001899,1725299510164,-2400.57,0.00053698,120]
[337001900,1725299510174,-2683.59,0.00053698,120]
[337001901,1725299510185,-9812.96,0.00053698,120]
[337001902,1725299510195,-559.89,0.00053698,21]
[337001903,1725299510206,-1849.02,0.00053698,2]
[337001904,1725299510217,-1101.48,0.00053698,120]
[337001905,1725299510227,-1032.68,0.00053698,120]
[337001906,1725299510237,-341.12,0.00053698,120]
[337001907,1725299510248,-500.0,0.00053698,120]
[337001908,1725299510260,-581.24,0.00053698,120]
[337001909,1725299510270,-1006.75,0.00053698,120]
[337001910,1725299510280,-564.09,0.00053698,120]
[337001911,1725299510290,-824.68,0.00053698,120]
[337001912,1725299510300,-592.45,0.00053698,120]
[337001913,1725299510310,-2165.33,0.00053698,120]
[337001914,1725299510321,-500.0,0.00053698,7]
[337001915,1725299510330,-801.11,0.00053698,120]
[337001916,1725299510341,-6010.24,0.00053698,120]
[337001917,1725299510351,-2597.09,0.00053698,120]
[337001918,1725299510361,-1197.24,0.00053698,120]
[337001919,1725299510371,-500.0,0.00053698,120]
[337001920,1725299510381,-725.84,0.00053698,120]
[337001921,1725299510390,-509.19,0.00053698,120]
[337001922,1725299510400,-500.0,0.00053698,120]
[337001923,1725299510411,-768.36,0.00053698,120]
[337001924,1725299510421,-500.0,0.00053698,120]
[337001925,1725299510431,-1224.14,0.00053698,120]
[337001926,1725299510442,-601.31,0.00053698,120]
[337001927,1725299510451,-555.15,0.00053698,120]
[337001928,1725299510462,-603.36,0.00053698,120]
[337001929,1725299510471,-541.45,0.00053698,120]
[337001930,1725299510481,-823.62,0.00053698,120]
[337001931,1725299510491,-320.94,0.00053698,120]
[337001932,1725299510645,-4513.12,0.00053698,120]
[337001933,1725299510657,-824.48,0.00053698,120]
[337001934,1725299510668,-500.0,0.00053698,120]
[337001935,1725299510678,-500.0,0.00053698,120]
[337001936,1725299510689,-513.66,0.00053698,120]
[337001937,1725299510699,-634.52,0.00053698,120]
[337001938,1725299510714,-500.0,0.00053698,120]
[337001939,1725299510724,-2265.21,0.00053698,120]
[337001940,1725299510733,-611.87,0.00053698,120]
[337001941,1725299510743,-725.61,0.00053698,120]
[337001942,1725299510754,-500.68,0.00053698,120]
[337001943,1725299510764,-1603.88,0.00053698,120]
[337001944,1725299510775,-500.0,0.00053698,120]
[337001945,1725299510785,-2208.45,0.00053698,120]
[337001946,1725299510798,-1295.36,0.00053698,120]
[337001947,1725299510807,-500.0,0.00053698,120]
[337001948,1725299510817,-852.54,0.00053698,120]
[337001949,1725299510827,-2684.25,0.00053698,120]
[337001950,1725299510837,-500.0,0.00053698,120]
[337001951,1725299510846,-420.3,0.00053698,120]
[337001952,1725299510856,-760.47,0.00053698,120]
[337001953,1725299510866,-2593.6,0.00053698,120]
[337001954,1725299510876,-1684.55,0.00053698,120]
[337001955,1725299510885,-1404.31,0.00053698,120]
[337001956,1725299510895,-154.64,0.000537,54]
[337001957,1725299510906,-154.64,0.000537,54]
[337001958,1725299510917,-458.00147098,0.000538,120]
[337001959,1725299510928,-184.25,0.000539,30]
[337001960,1725299510938,-671.9312157,0.000539,2]
[337001961,1725299510948,-588.33,0.00054246,120]
[337001962,1725299510958,-500.0,0.00054246,120]
[337001963,1725299510968,-1913.8,0.00054246,120]
[337001964,1725299510980,-493.76,0.00054246,120]
[337001965,1725299510991,-520.83,0.00054246,120]
[337001966,1725299511002,-796.73,0.00054246,120]
[337001967,1725299511014,-529.6,0.00054246,120]
[337001968,1725299511025,-500.0,0.00054246,120]
[337001969,1725299511035,-414.26360294,0.00054246,120]
[337001970,1725299511045,-500.0,0.00054246,120]
[337001971,1725299511055,-500.0,0.00054246,120]
[337001972,1725299511065,-606.46,0.00054246,120]
[337001973,1725299511075,-351.11475263,0.00054246,120]
[337001974,1725299511084,-500.0,0.00054246,120]
[337001975,1725299511093,-509.34,0.00054246,120]
[337001976,1725299511105,-865.46,0.00054246,120]
[337001977,1725299511114,-1000.49,0.00054246,120]
[337001978,1725299511125,-1160.3,0.00054246,120]
[337001979,1725299511135,-619.14,0.00054246,120]
[337001980,1725299511144,-246.96,0.00054246,120]
[337001981,1725299511154,-500.0,0.00054246,120]
[337001982,1725299511164,-1248.91,0.00054246,120]
[337001983,1725299511173,-762.67,0.00054246,120]
[337001984,1725299511183,-500.0,0.00054246,120]
[337001985,1725299511192,-500.0,0.00054246,120]
[337001986,1725299511201,-505.46,0.00054246,120]
[337001987,1725299511211,-500.0,0.00054246,120]
[337001988,1725299511220,-729.65,0.00054246,120]
[337001989,1725299511231,-500.0,0.00054246,120]
[337001990,1725299511241,-571.48,0.00054246,120]
[337001991,1725299511251,-835.83,0.00054246,120]
[337001992,1725299511261,-587.13,0.00054246,30]
[337001993,1725299511271,-779.61,0.00054246,120]
[337001994,1725299511280,-1042.33,0.00054246,120]
[337001995,1725299511290,-500.0,0.00054246,120]
[337001996,1725299511300,-500.0,0.00054246,120]
[337001997,1725299511310,-562.87,0.00054246,120]
[337001998,1725299511320,-620.6,0.00054246,120]
[337001999,1725299511330,-1378.84,0.00054246,120]
[337002000,1725299511340,-1685.12,0.00054246,120]
[337002001,1725299511350,-807.99,0.00054246,120]
[337002002,1725299511359,-2400.57,0.00054246,120]
[337002003,1725299511369,-2683.59,0.00054246,120]
[337002004,1725299511379,-9812.96,0.00054246,120]
[337002005,1725299511389,-559.89,0.00054246,21]
[337002006,1725299511399,-1849.02,0.00054246,2]
[337002007,1725299511409,-1101.48,0.00054246,120]
[337002008,1725299511418,-1032.68,0.00054246,120]
[337002009,1725299511428,-500.0,0.00054246,120]
[337002010,1725299511437,-581.24,0.00054246,120]
[337002011,1725299511446,-1006.75,0.00054246,120]
[337002012,1725299511455,-564.09,0.00054246,120]